{"text_format":"1","workbook":"xlsx","n_sheets":20,"sheets":["Menu","Datu pilnība","Dinamika konti","Dinamika konti DK","Dinamika konti klienti DK","Klienti un konti","Kor.konti","Lietotāji","Apaļas summas","Lielās summas","Brīvdienas","Pēc slēgšanas grāmatojumi","Ārpus perioda grāmatojumi","VG","OperZur","OperZur2","OperZur3","OperZur4","Format","Tiesibas"],"not_rendered":{"charts":0,"images":0,"macros":1,"external_links":0,"defined_names":35,"comments":6,"pivot_tables":0},"unopened":[],"bounds":{"document_bytes":16777216,"sheet_cells":100000,"rows_first":2000,"rows_last":500,"rows_between":2000,"halvings":0,"cell_chars":16384,"cell_head_chars":4096},"cells_cut":0,"cells_raw":0,"read":"whole","date_system":"1900"}

{"sheet":"Menu","index":0,"n_rows":29,"n_cols":21,"rows_kept":29,"cut":false,"hidden":false,"merged":[[1,19,1,20],[14,1,19,6],[28,3,28,8],[26,2,26,8],[27,3,27,8],[21,1,22,6],[1,3,1,6],[3,3,3,6],[4,3,4,6],[5,3,5,6],[13,1,13,6]]}
[]
[null,"Auditors: ","SIA","…",null,null,null,null,"Svētku dienas",null,"Aktuālie klienti","Tips",null,"Aktuālie konti","Tips",null,"<-- Testam",null,null,"Testu saraksts"]
[null,null,null,null,null,null,null,null,"2024-01-01",null,null,null,null,null,null,null," Klienti un Konti",null,null,"x","Datu pilnība"]
[null,"Klients:","SIA","…",null,null,null,null,"2024-03-29",null,null,null,null,null,null,null,null,null,null,"x","Dinamika konti"]
[null,"Audita vadītājs:",null,"…",null,null,null,null,"2024-03-31",null,null,null,null,null,null,null,null,null,null,"x","Dinamika konti DK"]
[null,"Grāmatvedības sistēma:",null,"…",null,null,null,null,"2024-04-01",null,null,null,null,null,null,null,null,null,null,"x","Dinamika konti klienti DK"]
[null,null,null,null,null,null,null,null,"2024-05-01",null,null,null,null,null,null,null,null,null,null,"x","Klienti un konti"]
[null,null,null,"No","Līdz",null,"Izpildes datums",null,"2024-05-04",null,null,null,null,null,null,null,null,null,null,"x","Kor.konti"]
[null,"Pārbaudes periods:",null,"2024-01-01","2024-12-31",null,null,null,"2024-05-06",null,null,null,null,null,null,null,null,null,null,"x","Lietotāji"]
[null,null,null,null,null,null,null,null,"2024-05-12",null,null,null,null,null,null,null,null,null,null,"x","Apaļas summas"]
[null,"Būtiskums:",null,null,null,{"$f":"MID(1/10,2,1)","v":"."},"Dec. atdalītais",null,"2024-05-19",null,null,null,null,null,null,null,null,null,null,"x","Lielās summas"]
[null,"Izpildes būtiskums:",null,null,null,null,"Tūkst. atdalītais",null,"2024-06-23",null,null,null,null,null,null,null,null,null,null,"x","Brīvdienas"]
[null,null,null,null,null,null,null,null,"2024-06-24",null,null,null,null,null,null,null,null,null,null,"x","Pēc slēgšanas grāmatojumi"]
[null,"Piezīmes:",null,null,null,null,null,null,"2024-11-18",null,null,null,null,null,null,null,null,null,null,"x","Ārpus perioda grāmatojumi"]
[null,null,null,null,null,null,null,null,"2024-12-24"]
[null,null,null,null,null,null,null,null,"2024-12-25"]
[null,null,null,null,null,null,null,null,"2024-12-26"]
[null,null,null,null,null,null,null,null,"2024-12-31"]
[]
[]
[]
[null,"Veicot jebkuru no testiem (zaļas lapas) atkārtoti, \nmanuāli ierakstīta informācija zem 10-as rindas, tiek izdzēsta. ",null,null,null,null,null,null,"OperZur Periods"]
[null,null,null,null,null,null,null,null,"1 pilns gads"]
[]
[]
[]
[null,"Apraksts:","https://exceldarbariki.mozello.lv/produkti/operzurnals/"]
[null,"Kā ieslēgt makrosus:",null,"https://exceldarbariki.mozello.lv/produkti/instrukcijas/"]
[null,"Kā atbloķēt makrosus:",null,"https://exceldarbariki.mozello.lv/produkti/ka-atbloket-makrosus/"]

{"sheet":"Datu pilnība","index":1,"n_rows":9,"n_cols":10,"rows_kept":9,"cut":false,"hidden":false,"merged":[[3,2,3,8],[1,2,1,5],[7,5,7,7],[7,3,7,4],[2,2,2,8]]}
[]
[null,"Klients",{"$f":"Menu!$C$4&\" \"&Menu!$D$4","v":"SIA …"},null,null,null,"Periods",{"$f":"Menu!$D$9","v":"2024-01-01"},{"$f":"Menu!$E$9","v":"2024-12-31"},"Ja kolonnas D:G"]
[null,"Mērķis","Salīdzināt virsgrāmatu ar operācijas žurnālu un pārbaudīt datu pilnību",null,null,null,null,null,null," - virs Būtiskuma"]
[null,"Secinājums",null,null,null,null,null,null,null," - zem Būtiskuma, bet virs IB"]
[]
[null,null,null,{"$f":"ROUND(SUM(D9:D1048576),2)","v":0},0,0,0,0,0]
[]
[null,"Konts","Nosaukums","Virsgrāmatas saldo",null,"Operāciju žurnāla",null,null,"Beigu saldo","Skaidrojums"]
[null,null,null,"Sākumā","Beigās","Apgr.debets","Apgr.kredīts","Beigu saldo","starpība"]

{"sheet":"Dinamika konti","index":2,"n_rows":9,"n_cols":18,"rows_kept":9,"cut":false,"hidden":false,"merged":[[1,2,1,13],[2,2,2,16],[3,2,3,16],[8,4,8,15]]}
[]
[null,"Klients",{"$f":"Menu!$C$4&\" \"&Menu!$D$4","v":"SIA …"},null,null,null,null,null,null,null,null,null,null,null,"Periods",{"$f":"Menu!$D$9","v":"2024-01-01"},{"$f":"Menu!$E$9","v":"2024-12-31"},"Ja kolonnas D:Q"]
[null,"Mērķis","Atlasīt kontu grāmatojumu dinamiku ar mērķi identificēt neparastas tendences.",null,null,null,null,null,null,null,null,null,null,null,null,null,null," - virs Būtiskuma"]
[null,"Secinājums",null,null,null,null,null,null,null,null,null,null,null,null,null,null,null," - zem Būtiskuma, bet virs IB"]
[]
[null,null,null,{"$f":"ROUND(SUM(D9:D1048576),2)","v":0},0,0,0,0,0,0,0,0,0,0,0,0,0]
[]
[null,"Konts","Nosaukums","Sākumā",{"$f":"Menu!$D$9","v":"2024-01-01"},{"$f":"DATE(YEAR(E8),MONTH(E8)+2,0)","v":"2024-02-29"},{"$f":"DATE(YEAR(F8),MONTH(F8)+2,0)","v":"2024-03-31"},"2024-04-30","2024-05-31","2024-06-30","2024-07-31","2024-08-31","2024-09-30","2024-10-31","2024-11-30","2024-12-31","Beigās","Komentārs"]
[null,null,null,"Saldo","Apgrozījums",null,null,null,null,null,null,null,null,null,null,null,"Saldo"]

{"sheet":"Dinamika konti DK","index":3,"n_rows":9,"n_cols":18,"rows_kept":9,"cut":false,"hidden":false,"merged":[[1,2,1,13],[2,2,2,16],[3,2,3,16],[8,4,8,15]]}
[]
[null,"Klients",{"$f":"Menu!$C$4&\" \"&Menu!$D$4","v":"SIA …"},null,null,null,null,null,null,null,null,null,null,null,"Periods",{"$f":"Menu!$D$9","v":"2024-01-01"},{"$f":"Menu!$E$9","v":"2024-12-31"},"Ja kolonnas D:Q"]
[null,"Mērķis","Atlasīt kontu grāmatojumu dinamiku ar mērķi identificēt neparastas tendences.",null,null,null,null,null,null,null,null,null,null,null,null,null,null," - virs Būtiskuma"]
[null,"Secinājums",null,null,null,null,null,null,null,null,null,null,null,null,null,null,null," - zem Būtiskuma, bet virs IB"]
[]
[null,null,null,{"$f":"ROUND(SUM(D9:D1048576),2)","v":0},0,0,0,0,0,0,0,0,0,0,0,0,0]
[]
[null,"Konts","Nosaukums","Sākumā",{"$f":"Menu!$D$9","v":"2024-01-01"},{"$f":"DATE(YEAR(E8),MONTH(E8)+2,0)","v":"2024-02-29"},{"$f":"DATE(YEAR(F8),MONTH(F8)+2,0)","v":"2024-03-31"},"2024-04-30","2024-05-31","2024-06-30","2024-07-31","2024-08-31","2024-09-30","2024-10-31","2024-11-30","2024-12-31","Beigās","Komentārs"]
[null,null,null,"Saldo","Apgrozījums",null,null,null,null,null,null,null,null,null,null,null,"Saldo"]

{"sheet":"Dinamika konti klienti DK","index":4,"n_rows":9,"n_cols":17,"rows_kept":9,"cut":false,"hidden":false,"merged":[[2,2,2,15],[3,2,3,15],[8,4,8,15],[1,2,1,12]]}
[]
[null,"Klients",{"$f":"Menu!$C$4&\" \"&Menu!$D$4","v":"SIA …"},null,null,null,null,null,null,null,null,null,null,"Periods",{"$f":"Menu!$D$9","v":"2024-01-01"},{"$f":"Menu!$E$9","v":"2024-12-31"},"Ja kolonnas D:Q"]
[null,"Mērķis","Atlasīt kontu grāmatojumu dinamiku ar mērķi identificēt neparastas tendences.",null,null,null,null,null,null,null,null,null,null,null,null,null," - virs Būtiskuma"]
[null,"Secinājums",null,null,null,null,null,null,null,null,null,null,null,null,null,null," - zem Būtiskuma, bet virs IB"]
[]
[null,null,null,null,{"$f":"ROUND(SUMIFS(E9:E1048576,$D$9:$D$1048576,\"<>\"\"\"),2)","v":0},0,0,0,0,0,0,0,0,0,0,0]
[]
[null,"Konts","Nosauk.","Klients",{"$f":"Menu!$D$9","v":"2024-01-01"},{"$f":"DATE(YEAR(E8),MONTH(E8)+2,0)","v":"2024-02-29"},{"$f":"DATE(YEAR(F8),MONTH(F8)+2,0)","v":"2024-03-31"},"2024-04-30","2024-05-31","2024-06-30","2024-07-31","2024-08-31","2024-09-30","2024-10-31","2024-11-30","2024-12-31","Komentārs"]
[null,null,null,null,"Apgrozījums"]

{"sheet":"Klienti un konti","index":5,"n_rows":9,"n_cols":21,"rows_kept":9,"cut":false,"hidden":false,"merged":[[1,2,1,16],[2,2,2,19],[3,2,3,19],[8,7,8,18]]}
[]
[null,"Klients",{"$f":"Menu!$C$4&\" \"&Menu!$D$4","v":"SIA …"},null,null,null,null,null,null,null,null,null,null,null,null,null,null,"Periods",{"$f":"Menu!$D$9","v":"2024-01-01"},{"$f":"Menu!$E$9","v":"2024-12-31"},"Ja kolonnas H:T"]
[null,"Mērķis","Atlasīt klientu un kontu grāmatojumu dinamiku pa menešiem ar mērķi identificēt neparastas tendences.",null,null,null,null,null,null,null,null,null,null,null,null,null,null,null,null,null," - virs Būtiskuma"]
[null,"Secinājums",null,null,null,null,null,null,null,null,null,null,null,null,null,null,null,null,null,null," - zem Būtiskuma, bet virs IB"]
[]
[null,null,"Klienti -->","visi","visi","<-- Konti  |  Apraksts -->","nē"]
[]
[null,"Klienta","Klients","Konta","Konts","Nosaukums","Apraksts",{"$f":"Menu!$D$9","v":"2024-01-01"},{"$f":"DATE(YEAR(H8),MONTH(H8)+2,0)","v":"2024-02-29"},{"$f":"DATE(YEAR(I8),MONTH(I8)+2,0)","v":"2024-03-31"},"2024-04-30","2024-05-31","2024-06-30","2024-07-31","2024-08-31","2024-09-30","2024-10-31","2024-11-30","2024-12-31","Kopā","Komentārs"]
[null,"tips",null,"tips",null,null,null,"Apgrozījums"]

{"sheet":"Kor.konti","index":6,"n_rows":9,"n_cols":10,"rows_kept":9,"cut":false,"hidden":false,"merged":[[7,4,7,5],[7,6,7,7],[1,2,1,5],[2,2,2,8],[3,2,3,8]]}
[]
[null,"Klients",{"$f":"Menu!$C$4&\" \"&Menu!$D$4","v":"SIA …"},null,null,null,"Periods",{"$f":"Menu!$D$9","v":"2024-01-01"},{"$f":"Menu!$E$9","v":"2024-12-31"},"Ja kolonnas G:H"]
[null,"Mērķis","Atlasīt kontu grāmatojumu korespondences ar mērķi identificēt neparastas kombinācijas vai reti lietojamus grāmatojumus.",null,null,null,null,null,null," - virs Būtiskuma"]
[null,"Secinājums",null,null,null,null,null,null,null," - zem Būtiskuma, bet virs IB"]
[]
[null,null,null,null,null,null,{"$f":"ROUND(SUM(G9:G1048576),2)","v":0},{"$f":"ROUND(SUM(H9:H1048576),2)","v":0},{"$f":"ROUND(SUM(I9:I1048576),2)","v":0}]
[]
[null,"Konts","Nosaukums","Gram.","Korespondējošie konti",null,"Kor. konta apgrozījums",null,"Kombinac.","Komentārs"]
[null,null,null,"skaits","Konts","Nosaukums","Debets","Kredīts","skaits"]

{"sheet":"Lietotāji","index":7,"n_rows":9,"n_cols":8,"rows_kept":9,"cut":false,"hidden":false,"merged":[[1,2,1,3],[2,2,2,6],[3,2,3,6]]}
[]
[null,"Klients",{"$f":"Menu!$C$4&\" \"&Menu!$D$4","v":"SIA …"},null,"Periods",{"$f":"Menu!$D$9","v":"2024-01-01"},{"$f":"Menu!$E$9","v":"2024-12-31"},"Ja kolonna E"]
[null,"Mērķis","Identificēt aizdomīgus lietotājus, kas ir veikuši grāmatojumus.",null,null,null,null," - virs Būtiskuma"]
[null,"Secinājums",null,null,null,null,null," - zem Būtiskuma, bet virs IB"]
[]
[null,null,null,{"$f":"ROUND(SUM(D9:D1048576),2)","v":0},{"$f":"ROUND(SUM(E9:E1048576),2)","v":0}]
[]
[null,"Lietotājs","Izmantotie","Grām.","Grām.","Lietotāja","Pozīcija","Komentārs"]
[null,null,"konti","skaits","Summa","atšifrējums"]

{"sheet":"Apaļas summas","index":8,"n_rows":9,"n_cols":8,"rows_kept":9,"cut":false,"hidden":false,"merged":[[1,2,1,3],[2,2,2,6],[3,2,3,6],[8,3,8,4],[7,3,7,4]]}
[]
[null,"Klients",{"$f":"Menu!$C$4&\" \"&Menu!$D$4","v":"SIA …"},null,"Periods",{"$f":"Menu!$D$9","v":"2024-01-01"},{"$f":"Menu!$E$9","v":"2024-12-31"},"Ja kolonna F"]
[null,"Mērķis","Identificē žurnālu ierakstus, kas beidzas ar \"*.97\" - \"*.99\" ",null,null,null,null," - virs Būtiskuma"]
[null,"Secinājums",null,null,null,null,null," - zem Būtiskuma, bet virs IB"]
[]
[null,null,null,null,null,{"$f":"ROUND(SUM(F9:F1048576),2)","v":0},1000,"<- Atlasīt transakcijas virs"]
[]
[null,"Konti","Apraksts","Klients",null,"Summa","Dok.","Komentārs"]
[null,"Debets/Kredīts",null,null,null,null,"datums"]

{"sheet":"Lielās summas","index":9,"n_rows":9,"n_cols":8,"rows_kept":9,"cut":false,"hidden":false,"merged":[[1,2,1,3],[3,2,3,6],[2,2,2,6],[8,3,8,4],[7,3,7,4]]}
[]
[null,"Klients",{"$f":"Menu!$C$4&\" \"&Menu!$D$4","v":"SIA …"},null,"Periods",{"$f":"Menu!$D$9","v":"2024-01-01"},{"$f":"Menu!$E$9","v":"2024-12-31"},"Ja kolonna F"]
[null,"Mērķis","Identificē transakcijas, kas lielākas par noteikto vērtību.",null,null,null,null," - virs Būtiskuma"]
[null,"Secinājums",null,null,null,null,null," - zem Būtiskuma, bet virs IB"]
[]
[null,null,null,null,null,{"$f":"ROUND(SUM(F9:F1048576),2)","v":0},1000,"<- Atlasīt transakcijas virs"]
[]
[null,"Konti","Apraksts","Klients",null,"Summa","Dok.","Komentārs"]
[null,"Debets/Kredīts",null,null,null,null,"datums"]

{"sheet":"Brīvdienas","index":10,"n_rows":9,"n_cols":8,"rows_kept":9,"cut":false,"hidden":false,"merged":[[1,2,1,3],[2,2,2,6],[3,2,3,6],[8,4,8,6],[7,4,7,6]]}
[]
[null,"Klients",{"$f":"Menu!$C$4&\" \"&Menu!$D$4","v":"SIA …"},null,"Periods",{"$f":"Menu!$D$9","v":"2024-01-01"},{"$f":"Menu!$E$9","v":"2024-12-31"},"Ja kolonna A"]
[null,"Mērķis","Identificēt grāmatojumus, kas veikti brīvdienās un svētku dienās.",null,null,null,null," - Svētkudiena"]
[null,"Secinājums",null,null,null,null,null," - Brīvdiena"]
[]
[null,null,null,{"$f":"ROUND(SUM(D9:D1048576),2)","v":0}]
[]
[null,"Dok.","Konti","Summa","Apraksts",null,null,"Komentārs"]
[null,"datums","Debets/Kredīts"]

{"sheet":"Pēc slēgšanas grāmatojumi","index":11,"n_rows":9,"n_cols":8,"rows_kept":9,"cut":false,"hidden":false,"merged":[[8,3,8,4],[1,2,1,3],[2,2,2,6],[3,2,3,6],[7,3,7,4]]}
[]
[null,"Klients",{"$f":"Menu!$C$4&\" \"&Menu!$D$4","v":"SIA …"},null,"Periods",{"$f":"Menu!$D$9","v":"2024-01-01"},{"$f":"Menu!$E$9","v":"2024-12-31"},"Ja kolonnas A, G"]
[null,"Mērķis","Identificē grāmatojumus, kas ir veikti pēc VG slēgšanas datuma, vai reģistrēti gada pēdējos datumos.",null,null,null,null," - Svētkudiena"]
[null,"Secinājums",null,null,null,null,null," - Brīvdiena"]
[]
[null,null,"2022-12-30","<-VG slēgšanas (gram.) datums / gada pēdējie (dok.) datumi",null,{"$f":"ROUND(SUM(F9:F1048576),2)","v":0}]
[]
[null,"Dok.","Konti","Apraksts",null,"Summa","Dok.","Komentārs"]
[null,"datums","Debets/Kredīts",null,null,null,"datums"]

{"sheet":"Ārpus perioda grāmatojumi","index":12,"n_rows":9,"n_cols":8,"rows_kept":9,"cut":false,"hidden":false,"merged":[[1,2,1,3],[2,2,2,6],[3,2,3,6],[7,3,7,4],[8,3,8,4]]}
[]
[null,"Klients",{"$f":"Menu!$C$4&\" \"&Menu!$D$4","v":"SIA …"},null,"Periods",{"$f":"Menu!$D$9","v":"2024-01-01"},{"$f":"Menu!$E$9","v":"2024-12-31"},"Ja kolonnas A, G"]
[null,"Mērķis","Identificē grāmatojumus, kas ir par ārpus pārbaudes periodu",null,null,null,null," - Svētkudiena"]
[null,"Secinājums",null,null,null,null,null," - Brīvdiena"]
[]
[null,null,null,null,null,{"$f":"ROUND(SUM(F9:F1048576),2)","v":0}]
[]
[null,"Dok.","Konti","Apraksts",null,"Summa","Grām.","Komentārs"]
[null,"datums","Debets/Kredīts",null,null,null,"datums"]

{"sheet":"VG","index":13,"n_rows":5,"n_cols":9,"rows_kept":5,"cut":false,"hidden":false,"merged":[[1,6,2,6],[1,5,2,5],[1,4,2,4],[1,3,2,3],[1,8,2,8]]}
[]
[null,null,"VG izejas datu struktūra",{"$f":"SUM(INDIRECT(\"D6:D1048576\"))","v":0},{"$f":"SUM(INDIRECT(\"e6:e1048576\"))","v":0},{"$f":"SUM(INDIRECT(\"f6:f1048576\"))","v":0},{"$f":"SUM(INDIRECT(\"g6:g1048576\"))","v":0},null,"Datus var ielādēt manuāli - sakot ar 6-to rindu.\nVai automātiski, atbilstoši aprakstām komentārā pie šis šūnas."]
[null,null,"2 + 6 kolonnas"]
[]
[null,"Konts","Nosaukums",{"$f":"Menu!$D$9","v":"2024-01-01"},"Debeta \napgrozījums","Kredīta \napgrozījums",{"$f":"Menu!E9","v":"2024-12-31"}]

{"sheet":"OperZur","index":14,"n_rows":2,"n_cols":12,"rows_kept":2,"cut":false,"hidden":false,"merged":[[1,6,2,6],[1,3,2,5],[1,7,2,9],[1,11,2,17]]}
[]
[null,null,null,"Datus var ielādēt manuāli - \nsakot ar 6-to rindu.",null,null,"VAI","Automātiski, atbilstoši aprakstām komentārā pie šis šūnas.",null,null,null,"Katrai kolonnai 3. rindā jāizvēlas \"Pazīme\" no izkrītoša saraksta. \nVislabākie testa rezultāti būs ja izejas dati satur debeta un kredīta kontu 1 rindā."]

{"sheet":"OperZur2","index":15,"n_rows":2,"n_cols":12,"rows_kept":2,"cut":false,"hidden":true,"merged":[[1,3,2,5],[1,6,2,6],[1,7,2,9],[1,11,2,17]]}
[]
[null,null,null,"Datus var ielādēt manuāli - \nsakot ar 6-to rindu.",null,null,"VAI","Automātiski, atbilstoši aprakstām komentārā pie šis šūnas.",null,null,null,"Katrai kolonnai 3. rindā jāizvēlas \"Pazīme\" no izkrītoša saraksta. \nVislabākie testa rezultāti būs ja izejas dati satur debeta un kredīta kontu 1 rindā."]

{"sheet":"OperZur3","index":16,"n_rows":2,"n_cols":12,"rows_kept":2,"cut":false,"hidden":true,"merged":[[1,3,2,5],[1,6,2,6],[1,7,2,9],[1,11,2,17]]}
[]
[null,null,null,"Datus var ielādēt manuāli - \nsakot ar 6-to rindu.",null,null,"VAI","Automātiski, atbilstoši aprakstām komentārā pie šis šūnas.",null,null,null,"Katrai kolonnai 3. rindā jāizvēlas \"Pazīme\" no izkrītoša saraksta. \nVislabākie testa rezultāti būs ja izejas dati satur debeta un kredīta kontu 1 rindā."]

{"sheet":"OperZur4","index":17,"n_rows":2,"n_cols":12,"rows_kept":2,"cut":false,"hidden":true,"merged":[[1,3,2,5],[1,6,2,6],[1,7,2,9],[1,11,2,17]]}
[]
[null,null,null,"Datus var ielādēt manuāli - \nsakot ar 6-to rindu.",null,null,"VAI","Automātiski, atbilstoši aprakstām komentārā pie šis šūnas.",null,null,null,"Katrai kolonnai 3. rindā jāizvēlas \"Pazīme\" no izkrītoša saraksta. \nVislabākie testa rezultāti būs ja izejas dati satur debeta un kredīta kontu 1 rindā."]

{"sheet":"Format","index":18,"n_rows":39,"n_cols":20,"rows_kept":39,"cut":false,"hidden":true,"merged":[[12,4,12,6],[14,3,14,4],[16,3,16,4],[18,3,18,4]]}
["VG"]
[]
["HronoK2"]
[]
[]
["DatuPiln"]
[null,null,null,null,null,null,null,{"$f":"ROUND(D7+F7-G7,2)","v":0},{"$f":"ROUND(E7-H7,2)","v":0}]
["KorKonti"]
[]
["Lietotaji"]
[]
["Brivdienas"]
[]
["Pec sleg"]
[]
["Apalas"]
[]
["Lielas"]
[]
["Dinamika"]
[]
["KlKontDinamika"]
[null,null,null,null,null,null,null,null,null,null,null,null,null,null,null,null,null,null,null,{"$f":"SUM(H23:S23)","v":0}]
["HronK1"]
[]
[]
["DinamikaDK"]
[]
[]
["DinamikaDK"]
[]
[]
[]
[]
["DinamikaKlDK"]
[]
[]
[]
["DinamikaKlDK"]

{"sheet":"Tiesibas","index":19,"n_rows":18,"n_cols":15,"rows_kept":18,"cut":false,"hidden":true,"merged":[]}
[]
[null,null,null,"DatumsNo","2025-05-05",null,null,"TisWbName","ThisWbCustId","RN","ActivationDate","CompName/Path","Processor/HddSerialId","PROCESSOR_REVISION","USERNAME"]
[null,null,null,"DatumsLidz","2025-05-15",null,null,"OZUR",1,24,"2020-09-09","-","-","-","-"]
[null,null,null,"Skaitītājs (demo versijai)"]
[]
[null,null,null,"ThisWbName","OZUR"]
[null,null,null,"ThisWbCustId",1]
[null,null,null,"Limenis","D"]
[]
[null,null,null,"Nesakonfigurētas tiesības!"]
[null,null,null,"Nesakonfigurētas tiesības versijai!"]
[null,null,null,"Versijas periods ir beidzies!"]
[null,null,null,"Versijas apstrādes uzņēmuma RegNr neatbilst definētam!"]
[null,null,null,"Izvelētais RegNr nav definēts šajā versijā!"]
[null,null,null,"Lūdzu aizpildiet reģistrācijas numuru!"]
[null,null,null,"Versijas Importa/Eksporta skaits sasniedza 20!"]
[null,null,null,"Lūdzu veikt faila aktivāciju uz lapas \"Instrukcija\"!"]
[null,null,null,"Fails jau ir aktivizēts šim datoram un lietotājam!"]